Cogmind - Beta 15 @@@ ROGUE MODE // 2025.07.16 @ 17:38:11 Player: beans Result: Destroyed self with Grenade Launcher Performance ------------- Evolutions (0) 0 Regions Visited (2) 400 Robots Destroyed (33) 165 Value Destroyed (697) 697 Prototype IDs (0) 0 Alien Tech Used (0) 0 Bonus (0) 0 TOTAL SCORE: 1262 Bonus ------- None Cogmind --------- Core Integrity 0/250 Matter 49/300 Energy 160/160 System Corruption 0% Temperature Cool (0) Movement Core (200) Ox3 Location -10/Mines Parts ------- > --- POWER (1) -------- Light Nuclear Core > --- PROPULSION (2) --- (None) > --- UTILITY (2) ------ Signal Interpreter > --- WEAPON (2) ------- Grenade Launcher Grenade Launcher > --- INVENTORY (5) ---- EM Pulse Gun EM Pulse Gun Peak State ------------ > --- POWER ------------ Light Nuclear Core > --- PROPULSION ------- Light Treads > --- UTILITY ---------- Signal Interpreter > --- WEAPON ----------- Grenade Launcher Grenade Launcher > --- INVENTORY -------- EM Pulse Gun EM Pulse Gun [Rating: 7] Favorites ----------- Power Light Ion Engine Engine Light Ion Engine Power Core Light Nuclear Core Propulsion Light Treads Treads Light Treads Utility Signal Interpreter Processor Signal Interpreter Weapon Grenade Launcher Energy Gun EM Pulse Gun Launcher Grenade Launcher Build | -11 -10 -10 ------- Run | Yrd Mat Min Slots Evolved . | . . . Power . | . . . Propulsion . | . . . Utility . | . . . Weapon . | . . . Parts Attached 9 | 5 3 1 Power 2 | 1 . 1 Engine 1 | 1 . . Core 1 | . . 1 Reactor . | . . . Propulsion 2 | 2 . . Treads 2 | 2 . . Leg . | . . . Wheel . | . . . Hover . | . . . Flight . | . . . Utility 1 | . 1 . Device . | . . . Storage . | . . . Processor 1 | . 1 . Hackware . | . . . Protection . | . . . Artifact . | . . . Weapon 4 | 2 2 . Energy Gun 2 | 2 . . Energy Cannon . | . . . Ballistic Gun . | . . . Ballistic Cannon . | . . . Launcher 2 | . 2 . Special Weapon . | . . . Impact Weapon . | . . . Slashing Weapon . | . . . Piercing Weapon . | . . . Special Melee Weapon . | . . . Unidentified Prototypes . | . . . Parts Lost 3 | . 2 1 Power 1 | . 1 . Propulsion 2 | . 1 1 Utility . | . . . Weapon . | . . . Highest Loss Streak 1 | . 1 1 To Critical Strikes . | . . . Average Backups 1 | . 1 2 Power . | . . . Propulsion . | . . . Utility . | . . . Weapon 1 | . 1 2 Tool/Special . | . . . Unused Backups . | . . . Power . | . . . Propulsion . | . . . Utility . | . . . Weapon . | . . . Tool/Special . | . . . Average Slot Usage (%) 62 | . 60 65 Engine 7 | . 11 . Core 3 | . . 9 Treads 15 | . 16 13 Processor 7 | . 3 14 Energy Gun 4 | . 7 . Launcher 23 | . 20 28 Peak Build Rating 7 | 5 5 7 Average Rating 4 | 3 4 6 On Entrance 3 | . 5 4 Naked Turns . | . . . Heaviest Build 11 | 7 9 11 Greatest Support 40 | 40 40 20 Greatest Overweight (x) 3 | 2 . 3 Average Overweight (x) . | . . . Largest Inventory Capacity 5 | 5 5 5 Average Capacity 5 | 5 5 5 Most Carried 3 | 2 3 3 Average Carried 1 | . 1 2 Final Capacity 5 | 5 5 5 Final Carried 2 | . 2 2 Class Distribution -------------------- 100% | Mutant Dominant Class ---------------- Mutant | -10/Materials Mutant | -10/Mines Resources | -11 -10 -10 ----------- Run | Yrd Mat Min Matter Collected 404 | 145 192 67 Remotely . | . . . Salvage Created 720 | . 493 227 Parts 52 | . 33 19 Haulers Intercepted 1 | . 1 . Recyclers Shooed 1 | . 1 . Parts Field Recycled . | . . . Retrieved Matter . | . . . Parts Self-Destructed . | . . . Prevented . | . . . Kills | -11 -10 -10 ------- Run | Yrd Mat Min Combat Hostiles Destroyed 20 | . 9 11 Guns 3 | . 3 . AOE 17 | . 6 11 Classes Destroyed 7 | . 7 . Worker 2 | . 2 . Builder 3 | . 3 . Hauler 1 | . 1 . Recycler 4 | . 3 1 Watcher 3 | . 3 . Swarmer 9 | . 3 6 Grunt 11 | . 6 5 Best Kill Streak 6 | . 6 5 Combat Bots Only 4 | . 4 4 Max Kills in Single Turn 4 | . 4 2 Gunslinging . | . . . Exploded 2 | . 2 2 Melee . | . . . Uniques/NPCs Destroyed . | . . . Combat | -11 -10 -10 -------- Run | Yrd Mat Min Hostile Shots Fired 42 | . 31 11 Missed 12 | . 9 3 Hits 30 | . 22 8 Projectile 30 | . 22 8 Damage Taken 749 | . 561 188 Core 267 | . 211 56 Absorbed by Shields . | . . . Core Remaining (%) 100 | 100 . . Volleys Fired 27 | . 17 10 Largest 2 | . 2 2 Hottest 80 | . 80 60 Shots Fired 53 | . 34 19 Gun 15 | . 15 . Cannon . | . . . Launcher 38 | . 19 19 Special . | . . . Kinetic . | . . . Thermal . | . . . Explosive 38 | . 19 19 Electromagnetic 15 | . 15 . Robot Hit Streak 3 | . 3 2 Robot Miss Streak 3 | . 3 1 Penetration Max . | . . . Secondary Targets 1 | . 1 . Max Gunslinging Chain 1 | . 1 . Shots Hit Robots 12 | . 11 1 Core Hits 53 | . 28 25 Critical Kills . | . . . Critical Parts Destroyed . | . . . Critical Strikes . | . . . Melee Attacks . | . . . Impact . | . . . Slashing . | . . . Piercing . | . . . Sneak Attacks . | . . . Combat Hostiles . | . . . Follow-up Attacks . | . . . Damage Inflicted 2172 | . 1368 804 Guns 82 | . 82 . Cannons . | . . . Explosions 2090 | . 1286 804 Melee . | . . . Ramming . | . . . Kinetic . | . . . Thermal 554 | . 497 57 Explosive 1536 | . 789 747 Electromagnetic 82 | . 82 . Impact . | . . . Slashing . | . . . Piercing . | . . . Highest Corruption . | . . . Average Corruption . | . . . Corruption Purged . | . . . Corruption Blocked . | . . . Overload Shots . | . . . Overflow Damage 154 | . 152 2 Projectiles . | . . . Explosions 154 | . 152 2 Melee . | . . . Knockbacks . | . . . Impact . | . . . Kinetic . | . . . Secondary . | . . . Self-Inflicted Damage 425 | . 315 110 Shots 11 | . 7 4 Rammed . | . . . Targets Rammed . | . . . Kicked . | . . . Crushed . | . . . Highest Temperature 107 | . 107 24 Average Temperature 35 | . 46 12 Received Heat Transfer 129 | . 99 30 Siege Activations . | . . . Martial Activations . | . . . Shielding Activations . | . . . Robots Disrupted . | . . . Combat Hostiles . | . . . Robots Corrupted . | . . . Combat Hostiles . | . . . Parts Fried . | . . . Impact Corruptions . | . . . Robots Melted . | . . . Combat Hostiles . | . . . Parts Melted . | . . . Heat Transferred 550 | . 450 100 Parts Sabotaged . | . . . Parts Stolen . | . . . Parts Stripped . | . . . Power Chain Reactions 1 | . 1 . Alert | -11 -10 -10 ------- Run | Yrd Mat Min Maximum Alert Level 1 | . 1 1 Low Security (%) 22 | 100 23 1 Level 1 77 | . 76 98 Level 2 . | . . . Level 3 . | . . . Level 4 . | . . . Level 5 . | . . . High Security . | . . . Max Security . | . . . Peak Influence 399 | . 383 399 Initial 133 | . . 133 Average 230 | . 241 272 Influence Increases 910 | . 523 387 Destroy 0b10 Robot/C 400 | . 180 220 Destroy 0b10 Robot/NC 65 | . 60 5 Destroy Leader 88 | . 48 40 Disable Machine 135 | . 90 45 Destroy Structure 207 | . 130 77 Partial Spotted 15 | . 15 . Influence Decreases 510 | . 180 330 Entered New Map 210 | . . 210 Time Decay 270 | . 160 110 Lost Part 30 | . 20 10 Squads Dispatched 1 | . 1 . Investigation . | . . . Extermination . | . . . Reinforcement 1 | . 1 . Assault . | . . . Garrison . | . . . Intercept . | . . . Searches Triggered . | . . . Construction Impeded . | . . . Haulers Reinforced . | . . . Active Scanning Responses . | . . . Cargo Convoy Interrupts . | . . . Stealth | -11 -10 -10 --------- Run | Yrd Mat Min Distress Signals 1 | . 1 . Communications Jammed . | . . . Distress Signals . | . . . Times Spotted 21 | . 12 9 Peak Tracking Total 6 | . 6 5 Tactical Retreats . | . . . Traps | -11 -10 -10 ------- Run | Yrd Mat Min Traps Triggered . | . . . Indirectly . | . . . Trap Hack Attempts . | . . . Triggered . | . . . Disarmed . | . . . Reprogrammed . | . . . Reused . | . . . Traps Extracted . | . . . Installed . | . . . Triggered . | . . . Machines | -11 -10 -10 ---------- Run | Yrd Mat Min Machines Disabled 9 | . 6 3 Max in Single Turn 3 | . 3 3 Machines Repaired . | . . . Machines Dismantled . | . . . Machines Sabotaged . | . . . Overloaded Fab Kills . | . . . Hacking | -11 -10 -10 --------- Run | Yrd Mat Min Machines Accessed . | . . . Terminals . | . . . Fabricators . | . . . Repair Stations . | . . . Recycling Units . | . . . Scanalyzers . | . . . Garrison Access . | . . . Total Hacks . | . . . Successful . | . . . Failed . | . . . Catastrophic . | . . . Database Lockouts . | . . . Manual . | . . . Terminals . | . . . Fabricators . | . . . Repair Stations . | . . . Recycling Units . | . . . Scanalyzers . | . . . Garrison Access . | . . . Terminal Hacks . | . . . Fabricator Hacks . | . . . Repair Station Hacks . | . . . Recycling Unit Hacks . | . . . Scanalyzer . | . . . Garrison Access Hacks . | . . . Unauthorized Hacks . | . . . Terminals . | . . . Fabricators . | . . . Repair Stations . | . . . Recycling Units . | . . . Scanalyzers . | . . . Garrison Access . | . . . Data Cores Recovered . | . . . Used . | . . . Hacking Detections . | . . . Full Trace Events . | . . . Feedback Events . | . . . Feedback Blocked . | . . . Robot Schematics Acquired . | . . . Robots Built . | . . . Authchips . | . . . Time . | . . . Total Robot Build Rating . | . . . Part Schematics Acquired . | . . . Parts Built . | . . . Authchips . | . . . Time . | . . . Total Part Build Rating . | . . . Parts Repaired . | . . . Time . | . . . Parts Recycled . | . . . Recycled Matter . | . . . Retrieved Matter . | . . . Retrieved Components . | . . . Parts Scanalyzed . | . . . Part Schematics Acquired . | . . . Parts Damaged . | . . . Bothacking | -11 -10 -10 ------------ Run | Yrd Mat Min Used RIF Installer . | . . . Robots Hacked . | . . . Non-combat . | . . . Combat . | . . . Robot Hacks Applied . | . . . Relay Couplers Released . | . . . Fabnet Peak Effective % . | . . . Robots Rewired . | . . . Allies Hacked . | . . . Hacks Repelled . | . . . Allies | -11 -10 -10 -------- Run | Yrd Mat Min Total Allies . | . . . Largest Group . | . . . Highest-Rated Group . | . . . Highest-Rated Ally . | . . . Total Orders . | . . . Ally Attacks . | . . . Total Damage . | . . . Kills . | . . . Allies Corrupted . | . . . Allies Melted . | . . . Intel | -11 -10 -10 ------- Run | Yrd Mat Min Active Infowar (turns) . | . . . Robot Analysis Total . | . . . Derelict Logs Recovered . | . . . Drone Launches . | . . . Drone Recoveries . | . . . Exploration | -11 -10 -10 ------------- Run | Yrd Mat Min Turns Passed 687 | 61 393 233 Spaces Moved 375 | 39 209 127 Core 21 | 20 . 1 Treads 354 | 19 209 126 Legs . | . . . Wheels . | . . . Hover . | . . . Flight . | . . . Fastest Speed 50 | 50 160 160 Average Speed 157 | 133 160 160 Slowest Speed 200 | 160 160 200 Overloaded Moves . | . . . Propulsion Burnouts . | . . . Robots Hopped . | . . . Potential Cave-ins . | . . . Cave-ins Triggered . | . . . Exploration Rate (%) 28 | 4 44 38 Regions Visited 2 Branch Regions 1 Pre-discovered Areas . | . . . Known Exits Taken 1 | . 1 . Unknown Exits Taken 1 | 1 . . Scrap Searched . | . . . Spaces Dug 10 | . 10 . Terrain Destroyed 235 | . 143 92 Melee . | . . . Projectile . | . . . AOE 235 | . 143 92 Terrain Rammed . | . . . Walls Destroyed . | . . . Machines Disabled . | . . . Actions | -11 -10 -10 --------- Run | Yrd Mat Min Total 420 | 48 233 139 Wait 2 | . 2 . Move 373 | 38 208 127 Hop . | . . . Pick Up 9 | 5 3 1 Fast Attach . | . . . Attach 7 | 5 1 1 Detach . | . . . Swap 2 | . 2 . Drop . | . . . Fire 27 | . 17 10 Melee . | . . . Ram . | . . . Kick . | . . . Crush . | . . . Escape Stasis . | . . . Rewire . | . . . Trap . | . . . Miscellaneous . | . . . Route ------- -11/Scrapyard -10/Materials (discovered 2 exits: [*Mat] / *Min) -10/Mines History --------- Turn | Location | Event 18 | -11/Scrapyard | Discovered new exit (range 16) 62 | -11/Scrapyard | Entered Materials 132 | -10/Materials | Core integrity fell below 50% 247 | -10/Materials | Discovered new exit (range 16) 306 | -10/Materials | Build established: Mutant 325 | -10/Materials | Core integrity fell below 20% 441 | -10/Materials | Discovered new exit (range 6) 452 | -10/Materials | Identified exit to Mines 455 | -10/Materials | Entered Mines 688 | -10/Mines | Destroyed self with Grenade Launcher Last Messages --------------- The unstable cave ceiling collapses. U-05 Engineer lays Concrete. U-05 Engineer builds a Wall. U-05 Engineer lays Concrete. U-05 Engineer builds a Wall. U-05 Engineer lays Concrete. Acquired 35 matter. U-05 Engineer builds a Wall. U-05 Engineer lays Concrete. Acquired 6 matter. U-05 Engineer lays Concrete. The unstable cave ceiling collapses. U-05 Engineer builds a Wall. K-01 Serf collects debris. S-10 Pest destroyed. Lgt. Treads destroyed. Destroyed Lgt. Treads. S-10 Pest destroyed. The unstable cave ceiling collapses. G-34 Mercenary destroyed. Map ----- +----------------------------------------------------+ | ??????????????????????????????????????????????? | | ??????????????????????????????????????????????? | | ??????????????????????????????????????????????? | | ??????????????????????????????????????????????? | | ??????????????????????????????????????????????? | | ??????????????????????????????????????????????? | | ??????????????????????????????????????????????? | | ??????????????????????????????????????????????? | | ??? #????????????????????????????????????????? | | ??? #???????????????????????????????????????? | | ???? ##?????????????????????????????????????? | | ??? ##????????????????????????????????????? | | "?? ##???????????????????????????????????? | | ??? #???????????????????????????????????? | | ????? ????????????????????????????????????? | | ????? ????????????????????????????????????? | | ????? ?????????????????????????????????????? | | ?????# #???????????????#####?????????????????? | | ?????# #??????????????## ##????????????????? | | ?????# #??????????????# #????????????????? | | ????## ##????????????## ?????????????????? | | ?#### ####????????## ??????????????????? | | ## ##???????# #??????????????????? | | ## #????????# #??????????????????? | | ## ### #????????# #### [ ?????? | | ### #????????# @ g % ?????? | | ##### ########## ### ?????? | | ##??# #?????????????????? | | #??## #???????????????????? | | ##??## #### ############???????????????????? | | #??## ### ##????????????????????????????? | | ???# ##???????????????????????????? | | ???# #???????????????????????????? | | ???## #??????????????????????????? | | ????## #??????????????????????????? | | ?????## ##??????????????????????????? | | ??????## ###???????????????????????????? | | ???????## ##?????????????????????????????? | | ????????## ##??????????????????????????????? | | ?????????## ##???????????????????????????????? | | ??????????####????????????????????????????????? | | ??????????????????????????????????????????????? | | ??????????????????????????????????????????????? | | ??????????????????????????????????????????????? | | | | | | | | | | | | | +----------------------------------------------------+ Best States ------------- Heat Dissipation 25 Energy Generation 14 Energy Capacity 160 Matter Stores 289 Matter Capacity 300 Sight Range 16 Terrain Scan Density 10 Evasion (%) 40 Recoil Reduction 2 Item Schematics ----------------- None Robot Schematics ------------------ None Fabricated ------------ Nothing Repaired ---------- Nothing Alien Tech Used ----------------- None Achievements -------------- None Challenges ------------ None Game ------ Seed PlexusGrenadeScanner Manual? 0 Play Time 00:04:56 Cumulative 53.9 hours Start 2025.07.16 @ 17:34:21 End 2025.07.16 @ 17:38:11 Sessions 1 Manual Loads 0 Difficulty Rogue Special Mode None Game No. 239 Rogue 239 Adventurer 0 Explorer 0 Win Type - Total 0 Types 0/0/0/0/0/0/0/0/0/0 Lore% 37 Gallery% 29 Achievement% 24 Wizard Run 0 Options --------- Layout 2 ASCII 0 Keyboard 0 Movement Mouse Keybinds 0 Fullscreen 1 Font 24/Smallcaps Map View 50x44 Zoom Use 0% Tactical HUD 0 Map Filters NONE Filters NONE Steam 1 RUN: 07747bd9-f70e-4788-bc02-cd2fb25741d0